[Event "Marshall CC FIDE Premier March 2024"]
[Site "New York"]
[Date "2024.03.02"]
[Round "1.1"]
[White "Bortnyk, Mykola"]
[Black "Ayyappan, Santhosh"]
[Result "1-0"]
[ECO "C77"]
[WhiteElo "2453"]
[BlackElo "1900"]
[Annotator "RC"]
[PlyCount "131"]
[EventDate "2024.02.02"]
[EventType "swiss"]
[EventCountry "USA"]
[SourceTitle "playchess.com"]
[Source "ChessBase"]
[SourceQuality "1"]
[TimeControl "5400+30"]

1. e4 {[%emt 0:07:39]} e5 {[%emt 0:05:41]} 2. Nf3 {[%emt 0:00:37]} Nc6 {[%emt 0:00:11]} 3. Bb5 {[%emt 0:00:23]} a6 {[%emt 0:00:17]} 4. Ba4 {[%emt 0:00:02]} Nf6 {[%emt 0:00:04]} 5. d3 {[%emt 0:00:27]} b5 {[%emt 0:00:08]} 6. Bb3 {[%emt 0:00:02]} Be7 {[%emt 0:00:04]} 7. g4 {[%emt 0:01:46]} d6 {[%emt 0:02:14]} 8. g5 {[%emt 0:00:49]} Nd7 {[%emt 0:02:06]} 9. a4 {[%emt 0:00:41]} Bb7 {[%emt 0:02:24]} 10. axb5 {[%emt 0:01:13]} axb5 {[%emt 0:00:08]} 11. Rxa8 {[%emt 0:00:04]} Qxa8 {[%emt 0:00:21]} 12. Nc3 {[%emt 0:00:03]} Nd4 {[%emt 0:02:55]} 13. Nxd4 {[%emt 0:01:34]} exd4 {[%emt 0:00:07]} 14. Ne2 {[%emt 0:00:03]} c5 {[%emt 0:06:47]} 15. Ng3 {[%emt 0:00:53]} d5 {[%emt 0:02:57]} 16. Nf5 {[%emt 0:13:34]} g6 {[%emt 0:15:10]} 17. Nxe7 {[%emt 0:03:05]} Kxe7 {[%emt 0:00:05]} 18. O-O {[%emt 0:03:01]} dxe4 {[%emt 0:13:12]} 19. Bf4 {[%emt 0:00:23]} Kf8 {[%emt 0:09:23]} 20. dxe4 {[%emt 0:13:49]} Bxe4 {[%emt 0:02:24]} 21. Bd6+ {[%emt 0:00:18]} Kg8 {[%emt 0:02:30]} 22. Re1 {[%emt 0:01:52]} c4 {[%emt 0:08:21]} 23. Qxd4 {[%emt 0:00:11]} cxb3 {[%emt 0:00:04]} 24. Bb4 {[%emt 0:04:04]} Qd5 {[%emt 0:04:28]} 25. Qxd5 {[%emt 0:01:53]} Bxd5 {[%emt 0:00:06]} 26. Re8+ {[%emt 0:00:03]} Kg7 {[%emt 0:00:07]} 27. Bc3+ {[%emt 0:00:05]} f6 {[%emt 0:00:24]} 28. Re7+ {[%emt 0:00:04]} Bf7 {[%emt 0:01:12]} 29. Rxd7 {[%emt 0:00:14]} bxc2 {[%emt 0:01:33]} 30. Bxf6+ {[%emt 0:01:03]} Kf8 {[%emt 0:00:13]} 31. Rd8+ {[%emt 0:00:05]} Be8 {[%emt 0:00:06]} 32. Rc8 {[%emt 0:00:04]} Rg8 {[%emt 0:01:12]} 33. Rxc2 {[%emt 0:00:01]} Bf7 {[%emt 0:03:03]} 34. Rc8+ {[%emt 0:00:16]} Be8 {[%emt 0:00:05]} 35. Rc7 {[%emt 0:00:09]} Bf7 {[%emt 0:00:08]} 36. f4 {[%emt 0:00:26]} Ke8 {[%emt 0:01:01]} 37. h4 {[%emt 0:00:43]} Kf8 {[%emt 0:00:06]} 38. Kf2 {[%emt 0:00:04]} Ke8 {[%emt 0:00:04]} 39. Ke3 {[%emt 0:00:23]} Kf8 {[%emt 0:00:05]} 40. Kd4 {[%emt 0:00:04]} Ke8 {[%emt 0:00:05]} 41. Kc5 {[%emt 0:00:03]} Bc4 {[%emt 0:00:06]} 42. Re7+ {[%emt 0:00:07]} Kd8 {[%emt 0:00:41]} 43. b3 {[%emt 0:00:05]} Bxb3 {[%emt 0:00:20]} 44. Re3+ {[%emt 0:00:11]} Kd7 {[%emt 0:00:03]} 45. Rxb3 {[%emt 0:00:06]} Ke6 {[%emt 0:00:03]} 46. Rxb5 {[%emt 0:00:08]} Kf5 {[%emt 0:00:05]} 47. Rb7 {[%emt 0:00:12]} h5 {[%emt 0:00:32]} 48. Kd6 {[%emt 0:00:05]} Kxf4 {[%emt 0:00:05]} 49. Ke6 {[%emt 0:00:03]} Kg4 {[%emt 0:00:08]} 50. Rb4+ {[%emt 0:00:02]} Kf3 {[%emt 0:00:05]} 51. Kf7 {[%emt 0:00:04]} Rc8 {[%emt 0:00:04]} 52. Kxg6 {[%emt 0:00:06]} Rc7 {[%emt 0:00:18]} 53. Kxh5 {[%emt 0:00:09]} Rf7 {[%emt 0:00:05]} 54. Kg6 {[%emt 0:00:04]} Rf8 {[%emt 0:00:02]} 55. h5 {[%emt 0:00:08]} Rc8 {[%emt 0:00:03]} 56. h6 {[%emt 0:00:05]} Re8 {[%emt 0:00:02]} 57. h7 {[%emt 0:00:06]} Rc8 {[%emt 0:00:01]} 58. h8=Q {[%emt 0:00:08]} Rxh8 {[%emt 0:00:03]} 59. Bxh8 {[%emt 0:00:07]} Ke3 {[%emt 0:00:02]} 60. Kf5 {[%emt 0:00:07]} Kd3 {[%emt 0:00:02]} 61. g6 {[%emt 0:00:17]} Ke3 {[%emt 0:00:08]} 62. g7 {[%emt 0:00:07]} Kd3 {[%emt 0:00:02]} 63. g8=Q {[%emt 0:00:15]} Ke3 {[%emt 0:00:04]} 64. Qg3+ {[%emt 0:00:09]} Kd2 {[%emt 0:00:03]} 65. Rb2+ {[%emt 0:00:05]} Kc1 {[%emt 0:00:04]} 66. Qe1# {[%emt 0:00:04]} 1-0

[Event "Marshall CC FIDE Premier March 2024"]
[Site "New York"]
[Date "2024.03.02"]
[Round "1.2"]
[White "Rand, Steven J"]
[Black "Zeltsan, Joseph"]
[Result "0-1"]
[ECO "A13"]
[WhiteElo "1945"]
[BlackElo "2419"]
[Annotator "RC"]
[PlyCount "94"]
[EventDate "2024.02.02"]
[EventType "swiss"]
[EventCountry "USA"]
[SourceTitle "playchess.com"]
[Source "ChessBase"]
[SourceQuality "1"]
[TimeControl "5400+30"]

1. c4 {[%emt 0:00:05]} e6 {[%emt 0:10:53]} 2. g3 {[%emt 0:00:11]} d5 {[%emt 0:00:04]} 3. Bg2 {[%emt 0:00:06]} Nf6 {[%emt 0:00:02]} 4. Nf3 {[%emt 0:00:14]} d4 {[%emt 0:07:39]} 5. O-O {[%emt 0:01:21]} c5 {[%emt 0:00:43]} 6. e3 {[%emt 0:02:04]} Nc6 {[%emt 0:00:03]} 7. exd4 {[%emt 0:00:22]} cxd4 {[%emt 0:00:05]} 8. d3 {[%emt 0:00:17]} Bd6 {[%emt 0:00:26]} 9. Bg5 {[%emt 0:00:38]} h6 {[%emt 0:01:01]} 10. Bxf6 {[%emt 0:00:10]} Qxf6 {[%emt 0:00:02]} 11. Nbd2 {[%emt 0:00:18]} Qd8 {[%emt 0:02:14]} 12. Nb3 {[%emt 0:03:05]} e5 {[%emt 0:00:39]} 13. Re1 {[%emt 0:10:26]} O-O {[%emt 0:00:03]} 14. c5 {[%emt 0:02:08]} Bc7 {[%emt 0:00:16]} 15. Nbd2 {[%emt 0:02:29]} f5 {[%emt 0:01:44]} 16. b4 {[%emt 0:04:51]} Qf6 {[%emt 0:05:50]} 17. b5 {[%emt 0:05:50]} Ne7 {[%emt 0:02:42]} 18. Nc4 {[%emt 0:12:28]} Ng6 {[%emt 0:01:15]} 19. Nfd2 {[%emt 0:10:49]} Kh8 {[%emt 0:04:11]} 20. a4 {[%emt 0:02:52]} Qe7 {[%emt 0:37:07]} 21. Nb3 {[%emt 0:11:05]} Be6 {[%emt 0:04:08]} 22. Bxb7 {[%emt 0:05:39]} Rad8 {[%emt 0:00:55]} 23. Rc1 {[%emt 0:04:53]} e4 {[%emt 0:04:35]} 24. dxe4 {[%emt 0:06:02]} f4 {[%emt 0:00:45]} 25. Bd5 {[%emt 0:01:38]} fxg3 {[%emt 0:00:26]} 26. fxg3 {[%emt 0:01:36]} Bxg3 {[%emt 0:08:27]} 27. hxg3 {[%emt 0:07:21]} Qg5 {[%emt 0:00:00]} 28. Qd2 {[%emt 0:00:17]} Nf4 {[%emt 0:00:10]} 29. Bxe6 {[%emt 0:03:27]} Qxg3+ {[%emt 0:00:02]} 30. Kh1 {[%emt 0:00:01]} Nxe6 {[%emt 0:04:07]} 31. Rg1 {[%emt 0:01:43]} Qxb3 {[%emt 0:00:20]} 32. Ne5 {[%emt 0:00:48]} Kh7 {[%emt 0:01:29]} 33. Qh2 {[%emt 0:00:47]} d3 {[%emt 0:00:51]} 34. c6 {[%emt 0:00:51]} d2 {[%emt 0:00:15]} 35. Rcd1 {[%emt 0:00:24]} Qe3 {[%emt 0:01:48]} 36. Qg2 {[%emt 0:00:26]} Rf2 {[%emt 0:01:09]} 37. Qg6+ {[%emt 0:00:35]} Kh8 {[%emt 0:00:06]} 38. Nf7+ {[%emt 0:00:40]} Rxf7 {[%emt 0:00:07]} 39. Qxe6 {[%emt 0:00:24]} Qf3+ {[%emt 0:00:39]} 40. Kh2 {[%emt 0:00:14]} Qh5+ {[%emt 0:00:35]} 41. Kg2 {[%emt 0:00:47]} Rdf8 {[%emt 0:01:05]} 42. Rxd2 {[%emt 0:00:34]} Qg5+ {[%emt 0:00:05]} 43. Kh1 {[%emt 0:00:32]} Rf1 {[%emt 0:01:14]} 44. Rxf1 {[%emt 0:00:29]} Rxf1+ {[%emt 0:00:08]} 45. Kh2 {[%emt 0:00:06]} Qg1+ {[%emt 0:00:04]} 46. Kh3 {[%emt 0:00:03]} Rf3+ {[%emt 0:00:05]} 47. Kh4 {[%emt 0:00:07]} Qg5# {[%emt 0:03:26]} 0-1

[Event "Marshall CC FIDE Premier March 2024"]
[Site "New York"]
[Date "2024.03.02"]
[Round "1.3"]
[White "Hughes, John L"]
[Black "Kozower, Ethan"]
[Result "1-0"]
[ECO "A36"]
[WhiteElo "2190"]
[BlackElo "1941"]
[Annotator "RC"]
[PlyCount "129"]
[EventDate "2024.02.02"]
[EventType "swiss"]
[EventCountry "USA"]
[SourceTitle "playchess.com"]
[Source "ChessBase"]
[SourceQuality "1"]
[TimeControl "5400+30"]

1. c4 {[%emt 0:00:38]} Nf6 {[%emt 0:00:46]} 2. Nc3 {[%emt 0:00:08]} c5 {[%emt 0:00:30]} 3. e4 {[%emt 0:02:00]} Nc6 {[%emt 0:00:26]} 4. g3 {[%emt 0:01:26]} g6 {[%emt 0:02:51]} 5. Bg2 {[%emt 0:00:44]} Bg7 {[%emt 0:00:02]} 6. Nge2 {[%emt 0:00:23]} O-O {[%emt 0:02:11]} 7. O-O {[%emt 0:02:51]} Rb8 {[%emt 0:11:45]} 8. d3 {[%emt 0:08:09]} a6 {[%emt 0:02:09]} 9. Be3 {[%emt 0:04:14]} d6 {[%emt 0:03:38]} 10. h3 {[%emt 0:00:37]} Bd7 {[%emt 0:18:47]} 11. f4 {[%emt 0:05:06]} b5 {[%emt 0:04:38]} 12. Qd2 {[%emt 0:03:04]} b4 {[%emt 0:07:41]} 13. Nd1 {[%emt 0:03:26]} Ne8 {[%emt 0:04:00]} 14. d4 {[%emt 0:11:42]} cxd4 {[%emt 0:04:30]} 15. Nxd4 {[%emt 0:00:12]} Nxd4 {[%emt 0:00:04]} 16. Bxd4 {[%emt 0:00:04]} Qc8 {[%emt 0:00:25]} 17. Kh2 {[%emt 0:14:19]} Qxc4 {[%emt 0:00:42]} 18. Bxg7 {[%emt 0:00:14]} Nxg7 {[%emt 0:02:36]} 19. Ne3 {[%emt 0:00:18]} Qe6 {[%emt 0:07:34]} 20. Nd5 {[%emt 0:02:32]} Ne8 {[%emt 0:14:42]} 21. Rfe1 {[%emt 0:13:06]} a5 {[%emt 0:00:44]} 22. e5 {[%emt 0:00:55]} dxe5 {[%emt 0:02:25]} 23. Rxe5 {[%emt 0:00:36]} Qd6 {[%emt 0:01:36]} 24. Nxe7+ {[%emt 0:09:28]} Kg7 {[%emt 0:00:09]} 25. Rd1 {[%emt 0:00:17]} Qxd2 {[%emt 0:02:13]} 26. Rxd2 {[%emt 0:00:01]} Bb5 {[%emt 0:02:11]} 27. Rdd5 {[%emt 0:02:25]} Nc7 {[%emt 0:01:14]} 28. Rc5 {[%emt 0:01:17]} f6 {[%emt 0:00:37]} 29. Rxc7 {[%emt 0:14:48]} fxe5 {[%emt 0:00:05]} 30. Nc6+ {[%emt 0:00:00]} Kh6 {[%emt 0:02:45]} 31. Nxe5 {[%emt 0:00:00]} Be2 {[%emt 0:01:12]} 32. Nf7+ {[%emt 0:00:00]} Kg7 {[%emt 0:00:48]} 33. Ng5+ {[%emt 0:00:00]} Kf6 {[%emt 0:00:32]} 34. Nxh7+ {[%emt 0:00:00]} Ke6 {[%emt 0:00:18]} 35. Nxf8+ {[%emt 0:00:00]} Rxf8 {[%emt 0:00:00]} 36. Rc5 {[%emt 0:00:10]} Bd3 {[%emt 0:00:22]} 37. Rxa5 {[%emt 0:00:35]} Rc8 {[%emt 0:00:04]} 38. Re5+ {[%emt 0:00:28]} Kf6 {[%emt 0:00:02]} 39. Rd5 {[%emt 0:02:05]} Bb1 {[%emt 0:01:56]} 40. Rd6+ {[%emt 0:00:30]} Ke7 {[%emt 0:00:31]} 41. Rd4 {[%emt 0:00:41]} Bxa2 {[%emt 0:00:31]} 42. Rxb4 {[%emt 0:00:03]} Rc2 {[%emt 0:00:10]} 43. b3 {[%emt 0:01:08]} Rb2 {[%emt 0:00:31]} 44. g4 {[%emt 0:00:25]} Rxb3 {[%emt 0:00:52]} 45. Rxb3 {[%emt 0:00:52]} Bxb3 {[%emt 0:00:02]} 46. Be4 {[%emt 0:00:17]} Kf6 {[%emt 0:00:43]} 47. g5+ {[%emt 0:00:49]} Kg7 {[%emt 0:00:22]} 48. Kg3 {[%emt 0:00:08]} Ba4 {[%emt 0:00:26]} 49. h4 {[%emt 0:00:19]} Bd7 {[%emt 0:00:42]} 50. Bf3 {[%emt 0:00:19]} Bf5 {[%emt 0:00:29]} 51. Bg4 {[%emt 0:00:40]} Bd3 {[%emt 0:00:07]} 52. h5 {[%emt 0:00:35]} gxh5 {[%emt 0:01:22]} 53. Bxh5 {[%emt 0:00:03]} Bc2 {[%emt 0:00:14]} 54. Kh4 {[%emt 0:00:22]} Bd3 {[%emt 0:00:14]} 55. Bg4 {[%emt 0:00:26]} Kg6 {[%emt 0:00:29]} 56. f5+ {[%emt 0:00:14]} Kf7 {[%emt 0:00:39]} 57. Kg3 {[%emt 0:00:09]} Bc2 {[%emt 0:00:27]} 58. Kf4 {[%emt 0:00:04]} Bb1 {[%emt 0:00:17]} 59. Ke5 {[%emt 0:00:11]} Kg7 {[%emt 0:01:03]} 60. Bh5 {[%emt 0:00:07]} Ba2 {[%emt 0:00:14]} 61. Kd6 {[%emt 0:00:22]} Bb1 {[%emt 0:00:18]} 62. f6+ {[%emt 0:00:14]} Kf8 {[%emt 0:00:16]} 63. g6 {[%emt 0:00:23]} Bc2 {[%emt 0:00:28]} 64. g7+ {[%emt 0:00:14]} Kg8 {[%emt 0:00:30]} 65. Bf3 {[%emt 0:00:40]} 1-0

[Event "Marshall CC FIDE Premier March 2024"]
[Site "New York"]
[Date "2024.03.02"]
[Round "1.4"]
[White "Das, Aditeya"]
[Black "Lin, Bryan Enming"]
[Result "1-0"]
[ECO "C45"]
[WhiteElo "1900"]
[BlackElo "2111"]
[Annotator "RC"]
[PlyCount "55"]
[EventDate "2024.02.02"]
[EventType "swiss"]
[EventCountry "USA"]
[SourceTitle "playchess.com"]
[Source "ChessBase"]
[SourceQuality "1"]
[TimeControl "5400+30"]

1. e4 {[%emt 0:06:36]} e5 {[%emt 0:00:15]} 2. Nf3 {[%emt 0:00:19]} Nc6 {[%emt 0:00:17]} 3. d4 {[%emt 0:00:49]} exd4 {[%emt 0:00:12]} 4. Nxd4 {[%emt 0:00:08]} Bb4+ {[%emt 0:00:12]} 5. c3 {[%emt 0:00:42]} Bc5 {[%emt 0:00:07]} 6. Be3 {[%emt 0:01:19]} Bb6 {[%emt 0:00:19]} 7. Nf5 {[%emt 0:03:32]} d5 {[%emt 0:00:18]} 8. Nxg7+ {[%emt 0:01:24]} Kf8 {[%emt 0:00:12]} 9. Bxb6 {[%emt 0:01:07]} axb6 {[%emt 0:00:07]} 10. exd5 {[%emt 0:00:39]} Ne5 {[%emt 0:00:26]} 11. Nh5 {[%emt 0:02:14]} Bg4 {[%emt 0:00:17]} 12. Be2 {[%emt 0:00:06]} Qg5 {[%emt 0:00:12]} 13. Ng3 {[%emt 0:00:59]} Bxe2 {[%emt 0:00:06]} 14. Kxe2 {[%emt 0:04:37]} Re8 {[%emt 0:01:25]} 15. Re1 {[%emt 0:20:45]} Ng4+ {[%emt 0:07:24]} 16. Kf1 {[%emt 0:00:19]} Nxh2+ {[%emt 0:01:21]} 17. Kg1 {[%emt 0:00:02]} Rxe1+ {[%emt 0:00:12]} 18. Qxe1 {[%emt 0:00:11]} Ng4 {[%emt 0:00:11]} 19. Nd2 {[%emt 0:01:18]} N8f6 {[%emt 0:30:17]} 20. d6 {[%emt 0:06:48]} cxd6 {[%emt 0:00:50]} 21. Nf3 {[%emt 0:01:17]} Qc5 {[%emt 0:00:44]} 22. Qd2 {[%emt 0:01:09]} h5 {[%emt 0:11:32]} 23. b4 {[%emt 0:04:06]} Qc6 {[%emt 0:03:54]} 24. Nf5 {[%emt 0:08:21]} d5 {[%emt 0:01:41]} 25. Re1 {[%emt 0:00:32]} h4 {[%emt 0:28:30]} 26. Qg5 {[%emt 0:03:31]} Rg8 {[%emt 0:00:44]} 27. Qf4 {[%emt 0:00:11]} Ne4 {[%emt 0:01:38]} 28. Rxe4 {[%emt 0:00:16]} 1-0

[Event "Marshall CC FIDE Premier March 2024"]
[Site "New York"]
[Date "2024.03.02"]
[Round "1.5"]
[White "Hebbar, Eshaan"]
[Black "Klein, Ethan"]
[Result "1-0"]
[ECO "D10"]
[WhiteElo "2187"]
[BlackElo "1946"]
[Annotator "RC"]
[PlyCount "91"]
[EventDate "2024.02.02"]
[EventType "swiss"]
[EventCountry "USA"]
[SourceTitle "playchess.com"]
[Source "ChessBase"]
[SourceQuality "1"]
[TimeControl "5400+30"]

1. d4 {[%emt 0:00:32]} d5 {[%emt 0:05:57]} 2. c4 {[%emt 0:00:07]} c6 {[%emt 0:00:04]} 3. Nc3 {[%emt 0:00:08]} Nf6 {[%emt 0:00:04]} 4. e3 {[%emt 0:00:07]} Bf5 {[%emt 0:05:49]} 5. cxd5 {[%emt 0:01:54]} cxd5 {[%emt 0:00:06]} 6. Qb3 {[%emt 0:00:06]} Nc6 {[%emt 0:00:10]} 7. Qxb7 {[%emt 0:01:20]} Bd7 {[%emt 0:00:07]} 8. Qb3 {[%emt 0:00:37]} Rb8 {[%emt 0:00:13]} 9. Qd1 {[%emt 0:00:06]} e5 {[%emt 0:00:07]} 10. Nf3 {[%emt 0:07:36]} Bd6 {[%emt 0:04:02]} 11. dxe5 {[%emt 0:01:13]} Nxe5 {[%emt 0:00:09]} 12. Be2 {[%emt 0:00:34]} O-O {[%emt 0:03:57]} 13. O-O {[%emt 0:00:08]} Qe7 {[%emt 0:08:39]} 14. Nd4 {[%emt 0:02:14]} Rfc8 {[%emt 0:04:17]} 15. Bb5 {[%emt 0:10:34]} Rxc3 {[%emt 0:17:00]} 16. Bxd7 {[%emt 0:05:36]} Rd3 {[%emt 0:07:02]} 17. Qe2 {[%emt 0:11:32]} Rxd4 {[%emt 0:05:32]} 18. exd4 {[%emt 0:00:39]} Nexd7 {[%emt 0:00:07]} 19. Be3 {[%emt 0:03:01]} Ne4 {[%emt 0:07:05]} 20. Rac1 {[%emt 0:01:31]} Qh4 {[%emt 0:04:06]} 21. h3 {[%emt 0:00:09]} f5 {[%emt 0:04:33]} 22. Rc6 {[%emt 0:02:12]} Rf8 {[%emt 0:04:51]} 23. Bc1 {[%emt 0:06:10]} Rf6 {[%emt 0:04:50]} 24. Rc8+ {[%emt 0:04:53]} Kf7 {[%emt 0:07:34]} 25. Qb5 {[%emt 0:00:43]} Ke7 {[%emt 0:02:41]} 26. Qxd5 {[%emt 0:00:32]} g5 {[%emt 0:02:34]} 27. Qg8 {[%emt 0:02:00]} Rf8 {[%emt 0:01:30]} 28. Rxf8 {[%emt 0:01:38]} Nxf8 {[%emt 0:00:01]} 29. Qg7+ {[%emt 0:00:11]} Ke8 {[%emt 0:00:14]} 30. Qxa7 {[%emt 0:01:11]} g4 {[%emt 0:00:26]} 31. Qa8+ {[%emt 0:02:19]} Kf7 {[%emt 0:00:02]} 32. Qd5+ {[%emt 0:02:06]} Kg6 {[%emt 0:00:55]} 33. Qg8+ {[%emt 0:01:08]} Kf6 {[%emt 0:00:09]} 34. Bf4 {[%emt 0:03:41]} Bxf4 {[%emt 0:01:12]} 35. Qxf8+ {[%emt 0:00:04]} Kg6 {[%emt 0:00:11]} 36. Qg8+ {[%emt 0:00:28]} Kh6 {[%emt 0:00:22]} 37. Qe6+ {[%emt 0:00:48]} Kg5 {[%emt 0:01:11]} 38. Qe7+ {[%emt 0:03:50]} Nf6 {[%emt 0:00:02]} 39. Qg7+ {[%emt 0:04:08]} Kh5 {[%emt 0:00:06]} 40. Rd1 {[%emt 0:04:28]} Bd6 {[%emt 0:01:40]} 41. Rd3 {[%emt 0:01:25]} h6 {[%emt 0:00:47]} 42. Qf7+ {[%emt 0:01:49]} Kg5 {[%emt 0:00:03]} 43. g3 {[%emt 0:00:18]} Qxh3 {[%emt 0:00:54]} 44. Qg7+ {[%emt 0:00:07]} Kh5 {[%emt 0:00:05]} 45. Qxf6 {[%emt 0:00:06]} f4 {[%emt 0:00:57]} 46. Qf5# {[%emt 0:00:08]} 1-0

[Event "Marshall CC FIDE Premier March 2024"]
[Site "New York"]
[Date "2024.03.02"]
[Round "2.1"]
[White "Hyatt, Jessica"]
[Black "Bortnyk, Mykola"]
[Result "0-1"]
[ECO "A51"]
[WhiteElo "1885"]
[BlackElo "2453"]
[Annotator "TA"]
[PlyCount "106"]
[EventDate "2024.02.02"]
[EventType "swiss"]
[EventCountry "USA"]
[SourceTitle "playchess.com"]
[Source "ChessBase"]
[SourceQuality "1"]
[TimeControl "5400+30"]

{[%evp 11,106,51,48,11,31,9,29,48,33,37,73,77,122,118,117,129,126,139,114,64,88,72,146,28,35,-62,-54,-130,-130,-137,-124,-183,-67,-72,-81,-56,-20,-22,-32,-25,-23,-33,0,0,0,0,0,0,0,0,16,20,66,-34,0,0,0,0,0,-92,-93,-71,-73,-232,-232,-522,-522,-520,-507,-455,-170,-170,-144,-148,-55,-56,0,-156,-53,-110,-100,-108,-99,-159,-158,-487,-489,-681,-681,-668,-664,-586,-576,-29973,-29975,-29973,-29972]} 1. d4 {[%emt 0:49:10]} Nf6 {[%emt 0:00:32]} 2. c4 {[%emt 0:00:14]} e5 {[%emt 0:02:19]} 3. dxe5 {[%emt 0:02:00]} Ne4 {[%emt 0:00:07]} 4. a3 {[%emt 0:01:07]} Nc6 {[%emt 0:00:24]} 5. Nf3 {[%emt 0:01:44]} d6 {[%emt 0:00:07]} 6. exd6 {[%emt 0:01:33]} Bxd6 {[%emt 0:00:06][%cal Oe4f2] Hoping for ...Nxf2!} 7. e3 {[%emt 0:00:13]} Qf6 {[%emt 0:02:04]} 8. Qc2 {[%emt 0:02:18]} Nc5 {[%emt 0:01:27]} 9. Nc3 {[%emt 0:00:29] White has an edge.} Bf5 {[%emt 0:00:23]} 10. e4 {[%emt 0:02:00]} Bg4 {[%emt 0:02:38]} 11. Be3 {[%emt 0:05:11] And now Nd5 would win.} O-O-O {[%emt 0:03:51]} 12. Nd5 $1 {[%emt 0:07:52]} Qg6 {[%emt 0:01:01]} 13. Nd2 {[%emt 0:00:35]} Rhe8 {[%emt 0:12:32]} 14. f3 {[%emt 0:01:29]} Bd7 {[%emt 0:05:37]} 15. b4 {[%emt 0:01:43]} (15. O-O-O $16) 15... Ne6 $1 $14 {[%emt 0:02:06]} 16. Nb3 {[%emt 0:00:02]} f5 {[%emt 0:03:08]} 17. Bd3 {[%emt 0:00:57]} (17. c5 $16 Bf8 (17... Be5 18. O-O-O $16) 18. b5 (18. exf5 Ned4 $14)) 17... Ne5 $1 $11 {[%emt 0:01:49] ...Nxd3+ is the strong threat.} 18. O-O-O {[%emt 0:04:57]} (18. Bxa7 $2 Nxd3+ 19. Qxd3 Nf4 (19... Qxg2 20. Nb6+ cxb6 21. Qxd6 $15) 20. Nxf4 Bxf4 $19) (18. exf5 $14 Nxd3+ 19. Qxd3) 18... Nxd3+ $15 {[%emt 0:00:18]} 19. Qxd3 {[%emt 0:00:18]} (19. Rxd3 $15 fxe4 20. fxe4) 19... fxe4 $17 {[%emt 0:00:08]} 20. fxe4 {[%emt 0:01:12]} Ba4 {[%emt 0:00:44]} 21. e5 {[%emt 0:04:33]} (21. Qc2 $17 {was called for.}) 21... Bxe5 {[%emt 0:00:29]} (21... Qxd3 $19 22. Rxd3 Bxe5) 22. Qxg6 $15 {[%emt 0:01:18]} hxg6 {[%emt 0:00:02]} 23. Kc2 {[%emt 0:00:04]} g5 {[%emt 0:07:35] Prevents g3.} 24. g3 $1 {[%emt 0:01:49]} b6 {[%emt 0:03:36]} 25. Nc3 {[%emt 0:01:02]} Bc6 {[%emt 0:05:36] A strong pair of Bishops.} 26. Rxd8+ {[%emt 0:01:01]} Rxd8 {[%emt 0:00:27]} 27. Re1 {[%emt 0:01:55][%cal Oe3b6]} Bf6 {[%emt 0:02:37]} 28. Bxb6 {[%emt 0:02:00]} axb6 {[%emt 0:00:08]} 29. Rxe6 {[%emt 0:00:03]} Bd7 {[%emt 0:00:28]} 30. Re2 {[%emt 0:00:54]} Bg4 {[%emt 0:00:34][%cal Of6c3]} 31. Rf2 {[%emt 0:00:58]} c6 {[%emt 0:00:02] Inhibits Nd5.} (31... Kb7 $11) 32. b5 {[%emt 0:02:34]} (32. c5 $14) 32... Bh5 {[%emt 0:00:27] Strongly threatening ...cxb5.} 33. Rd2 $1 {[%emt 0:00:29]} ({Much worse is} 33. bxc6 Bg6+ 34. Kb2 Rd3 35. Rxf6 (35. Rc2 $2 Re3 $19) 35... gxf6 $17) 33... Bg6+ {[%emt 0:00:34]} 34. Kb2 {[%emt 0:00:05]} Re8 {[%emt 0:02:05]} 35. bxc6 {[%emt 0:00:57]} (35. Nd4 $1 $11 Rd8 36. Nb3) 35... Re4 $1 $17 {[%emt 0:00:01]} 36. Nc1 {[%emt 0:01:23]} Rxc4 {[%emt 0:00:10]} 37. N1a2 {[%emt 0:00:06]} (37. N1e2 $17) 37... Rxc6 $19 {[%emt 0:00:15] White must now prevent ...Bf7.} 38. Kb3 $2 {[%emt 0:00:02]} (38. Rf2 {was forced.}) 38... Bf7+ $1 {[%emt 0:00:13]} 39. Nd5 {[%emt 0:01:03]} Rc5 {[%emt 0:00:20]} 40. Nab4 {[%emt 0:00:03]} Kb7 $2 {[%emt 0:00:38]} (40... Kd7 41. h4 Kd6 (41... gxh4 $2 42. gxh4 Kd6 43. h5 $19) 42. hxg5 Bxg5 (42... Bxd5+ 43. Rxd5+ Rxd5 44. Nxd5 $11)) 41. Rd3 {[%emt 0:01:47]} g4 {[%emt 0:00:44]} 42. Ka2 {[%emt 0:00:26]} Bc3 {[%emt 0:00:11]} (42... Rc1 $17 43. Rd2 Be6) 43. Re3 $1 $15 {[%emt 0:00:19]} Bf6 {[%emt 0:02:58] Dodges Re7+} (43... Rc7 $15 44. Kb1 Bd4) 44. Rd3 $17 {[%emt 0:00:01]} Kc8 {[%emt 0:02:43]} ({Better is} 44... Rc1 $1 $17 45. Kb3 Bg8) 45. a4 {[%emt 0:01:11]} ({White should try} 45. Rd1 $1 $15) 45... Rc1 {[%emt 0:00:30]} 46. Ka3 {[%emt 0:00:35]} Ra1+ {[%emt 0:00:06]} 47. Na2 {[%emt 0:00:14] [#]} (47. Kb3 $142) 47... Kb8 $1 {[%emt 0:00:48]} 48. Rd2 $2 {[%emt 0:00:34] [#]} (48. Kb3 $17 {nothing else works.}) 48... Rb1 $1 $19 {[%emt 0:00:09][%cal Of6e7] aiming for ...Be7+!} 49. Rd3 {[%emt 0:01:05]} Bxd5 {[%emt 0:00:16]} 50. Rxd5 {[%emt 0:00:05]} Be7+ {[%emt 0:00:04]} 51. Nb4 {[%emt 0:00:07]} Rxb4 {[%emt 0:00:39]} 52. Rd8+ {[%emt 0:00:29]} Bxd8 {[%emt 0:00:16]} 53. Kxb4 {[%emt 0:00:02]} Kb7 {[%emt 0:39:58] Weighted Error Value: White=0.55/Black=0.22 (precise) .  Loses game:     	White=1     	---        Mistake:       	White=11    	Black=6      Inaccurate:     	White=1     	Black=5      OK:         	White=14    	Black=11     Best:        	White=8     	Black=7      Strong:       	White=4     	Black=6} 0-1